bitfinex/quotes_SOLUSD_20260202
["timestamp","ask_amount","ask_price","bid_price","bid_amount"]
[1770054306979,13.05175627,104.73,104.7,0.5]
[1770054307482,3.50336294,104.73,104.7,0.5]
[1770054308465,3.50336294,104.75,104.71,0.5]
[1770054308768,9.5456281,104.76,104.71,0.5]
[1770054308769,3.50336294,104.76,104.72,0.5]
[1770054309374,3.50336294,104.76,104.73,10.04836245]
[1770054309954,3.50336294,104.76,104.74,0.5]
[1770054310160,3.50336294,104.79,104.74,0.5]
[1770054310354,3.50336294,104.78,104.74,0.5]
[1770054310955,9.54107432,104.81,104.77,0.5]
[1770054311263,3.50336294,104.79,104.76,7.27980826]
[1770054311584,3.50336294,104.78,104.75,0.5]
[1770054311787,3.50336294,104.8,104.74,9.54689262]
[1770054311788,3.50336294,104.77,104.74,9.54689262]
[1770054312083,3.50336294,104.77,104.74,10.04696944]
[1770054312975,3.50336294,104.75,104.72,10.04884914]
[1770054313176,3.50336294,104.75,104.73,0.5]
[1770054313475,3.50336294,104.74,104.71,36.58969142]
[1770054313978,13.05000342,104.75,104.71,36.58969142]
[1770054314290,3.50336294,104.74,104.71,0.5]
[1770054314581,18.31900743,104.75,104.72,0.5]
[1770054314885,67.90088723,104.79,104.73,10.04819412]
[1770054314886,8.77236695,104.77,104.73,10.04819412]
[1770054315473,8.77236695,104.77,104.74,0.5]
[1770054315786,8.77236695,104.75,104.72,0.5]
[1770054316284,8.77236695,104.76,104.72,10.04912689]
[1770054316486,8.76950994,104.76,104.72,10.04912689]
[1770054316660,33.40662746,104.77,104.72,10.04912689]
[1770054316661,8.76950994,104.75,104.72,0.5]
[1770054316861,8.76950994,104.73,104.7,10.05073584]
[1770054317065,8.76950994,104.74,104.7,10.05073584]
[1770054318064,8.76950994,104.74,104.71,0.5]
[1770054318265,8.76950994,104.75,104.71,0.5]
[1770054318785,8.76950994,104.76,104.72,0.5]
[1770054318971,18.31517141,104.76,104.72,0.5]
[1770054319992,18.31517141,104.76,104.72,10.04895082]
[1770054320175,8.76950994,104.75,104.72,0.5]
[1770054321467,8.76950994,104.75,104.72,10.04917724]
[1770054321874,18.31517141,104.76,104.72,10.04917724]
[1770054322696,8.76950994,104.75,104.72,10.04917724]
[1770054322873,8.76950994,104.76,104.72,10.04917724]
[1770054323074,8.76950994,104.76,104.72,9.54917724]
[1770054323385,8.76950994,104.77,104.73,0.5]
[1770054323590,8.76950994,104.76,104.72,36.58917724]
[1770054323971,8.76950994,104.75,104.72,36.58917724]
[1770054324699,18.3160998,104.75,104.72,27.04]
[1770054325494,8.76950994,104.74,104.72,26.54]
[1770054326295,8.76950994,104.74,104.71,0.5]
[1770054326706,8.76950994,104.74,104.72,0.5]
[1770054327599,8.76950994,104.74,104.71,10.05012221]
[1770054328087,8.76950994,104.74,104.71,9.55012221]
[1770054328293,18.31764267,104.74,104.71,0.5]
[1770054328767,18.31764267,104.74,104.71,10.05013618]
[1770054329092,18.31651603,104.75,104.71,10.05013618]
[1770054330575,18.31651603,104.75,104.71,0.5]
[1770054331091,42.18286447,104.75,104.71,0.5]
[1770054331388,8.76950994,104.73,104.7,10.05068577]
[1770054332080,8.76950994,104.73,104.7,0.5]
[1770054332485,18.31779387,104.74,104.71,0.5]
[1770054332996,8.76950994,104.74,104.71,0.5]
[1770054333197,18.31645558,104.75,104.71,0.5]
[1770054333397,18.31513804,104.76,104.71,0.5]
[1770054333588,8.76950994,104.75,104.71,0.5]
[1770054333984,8.76950994,104.74,104.71,0.5]
[1770054334494,8.76950994,104.75,104.71,10.04972054]
[1770054335602,8.76950994,104.75,104.72,0.5]
[1770054336578,3.50795467,104.75,104.72,0.5]
[1770054336779,3.50795467,104.77,104.73,0.5]
[1770054337875,13.05290698,104.77,104.73,10.0478925]
[1770054339005,3.50795467,104.77,104.74,0.5]
[1770054339196,3.50795467,104.78,104.74,0.5]
[1770054340404,13.05179512,104.78,104.74,0.5]
[1770054341802,13.05179512,104.78,104.74,9.54673778]
[1770054342000,13.05179512,104.78,104.75,0.5]
[1770054343402,3.50795467,104.78,104.75,0.5]
[1770054343904,13.05192422,104.78,104.75,0.5]
[1770054345019,3.50795467,104.77,104.74,27.04]
[1770054346815,3.50795467,104.77,104.74,26.54]
[1770054346996,3.50795467,104.78,104.75,0.5]
[1770054349110,3.50795467,104.78,104.75,10.04648869]
[1770054349314,13.05182164,104.78,104.75,10.04648869]
[1770054350025,13.05182164,104.78,104.75,0.5]
[1770054351627,13.05137235,104.79,104.76,0.5]
[1770054351808,13.05137235,104.79,104.75,0.5]
[1770054352312,3.50795467,104.78,104.75,0.5]
[1770054354226,13.05098128,104.79,104.75,10.0459615]
[1770054354433,13.05098128,104.79,104.76,0.5]
[1770054355040,3.50795467,104.79,104.76,0.5]
[1770054355834,36.9072981,104.8,104.76,0.5]
[1770054356028,13.04969632,104.81,104.77,0.5]
[1770054356618,13.04969632,104.81,104.78,0.5]
[1770054356934,36.90068514,104.82,104.78,0.5]
[1770054357135,13.0486761,104.82,104.78,0.5]
[1770054358318,3.50795467,104.83,104.79,10.04289531]
[1770054358527,3.50795467,104.82,104.79,10.04289531]
[1770054358729,3.50795467,104.82,104.79,0.5]
[1770054358940,33.38420449,104.84,104.79,0.5]
[1770054359144,3.50795467,104.83,104.79,0.5]
[1770054359517,3.50795467,104.82,104.79,0.5]
[1770054359739,3.50795467,104.83,104.79,0.5]
[1770054360538,13.04729549,104.83,104.8,0.5]
[1770054361139,13.04684849,104.84,104.8,0.5]
[1770054361344,3.50795467,104.83,104.8,0.5]
[1770054361645,8.69866943,104.87,104.83,0.5]
[1770054361828,0.2,104.87,104.84,4.00795467]
[1770054362232,0.2,104.87,104.83,4.00795467]
[1770054362440,0.2,104.87,104.84,0.5]
[1770054363635,13.24359706,104.87,104.84,0.5]
[1770054363823,3.50795467,104.86,104.83,0.5]
[1770054364237,3.50795467,104.85,104.81,0.5]
[1770054364525,3.50795467,104.86,104.82,10.03929252]
[1770054364936,3.50795467,104.85,104.82,10.03929252]
[1770054365135,3.50795467,104.85,104.82,0.5]
[1770054365437,3.50795467,104.86,104.83,0.5]
[1770054366020,3.50795467,104.86,104.82,10.03996835]
[1770054366453,13.04521694,104.86,104.82,10.03996835]
[1770054366753,3.50795467,104.85,104.82,0.5]
[1770054367134,3.50795467,104.85,104.81,0.5]
[1770054367528,3.50795467,104.84,104.81,0.5]
[1770054367728,33.37857449,104.86,104.81,0.5]
[1770054367928,3.50795467,104.84,104.81,0.5]
[1770054368847,13.04646286,104.84,104.81,0.5]
[1770054369495,13.04646286,104.84,104.8,10.04151576]
[1770054369925,13.04646286,104.84,104.81,0.5]
[1770054373639,9.53850819,104.84,104.81,0.5]
[1770054374962,13.04585199,104.85,104.81,10.04102551]
[1770054375342,9.53789732,104.85,104.82,0.5]
[1770054376060,9.53694934,104.86,104.83,0.5]
[1770054376248,13.04490401,104.86,104.83,0.5]
[1770054376553,9.53694934,104.86,104.83,0.5]
[1770054376756,37.08331845,104.87,104.83,0.5]
[1770054378164,3.50795467,104.86,104.83,0.5]
[1770054378339,3.50795467,104.86,104.82,10.04015965]
[1770054378542,3.5010834,104.86,104.83,0.5]
[1770054379258,3.5010834,104.85,104.82,0.5]
[1770054379960,13.03880281,104.85,104.82,0.5]
[1770054380659,13.03880281,104.85,104.81,9.54075255]
[1770054380660,13.03880281,104.85,104.81,10.04075255]
[1770054380860,13.03880281,104.85,104.82,0.5]
[1770054385661,3.5010834,104.84,104.82,0.5]
[1770054385961,13.03880281,104.85,104.82,0.5]
[1770054386864,3.5010834,104.83,104.78,0.5]
[1770054387067,3.5010834,104.81,104.77,10.0439793]
[1770054387240,3.5010834,104.8,104.77,0.5]
[1770054387446,3.5010834,104.78,104.75,0.5]
[1770054387763,13.04588964,104.77,104.74,0.5]
[1770054388061,3.5010834,104.77,104.75,0.5]
[1770054388750,13.04590125,104.77,104.74,0.5]
[1770054390844,36.89916034,104.8,104.76,0.5]
[1770054391046,13.04355142,104.8,104.76,0.5]
[1770054392244,13.04355142,104.8,104.77,0.5]
[1770054392444,3.5010834,104.79,104.76,0.5]
[1770054392942,3.5010834,104.78,104.75,0.5]
[1770054393142,3.5010834,104.79,104.76,0.5]
[1770054393342,36.89851325,104.8,104.76,0.5]
[1770054395075,13.04355142,104.8,104.76,13.54667507]
[1770054395764,13.04355142,104.8,104.76,0.5]
[1770054395952,3.5010834,104.79,104.76,0.5]
[1770054396459,13.04456818,104.79,104.76,0.5]
[1770054396646,3.5010834,104.78,104.75,0.5]
[1770054396852,3.5010834,104.78,104.74,13.54807176]
[1770054397052,3.5010834,104.78,104.75,0.5]
[1770054398749,36.90180646,104.79,104.75,4.0010834]
[1770054400253,13.04343189,104.8,104.77,0.5]
[1770054400455,9.54234849,104.8,104.77,0.5]
[1770054400758,13.04176282,104.82,104.78,0.5]
[1770054401544,13.04176282,104.82,104.79,0.5]
[1770054401964,13.04176282,104.82,104.78,0.5]
[1770054402165,3.5010834,104.81,104.77,0.5]
[1770054402363,3.5010834,104.81,104.77,10.04447104]
[1770054402557,3.5010834,104.81,104.77,13.54555444]
[1770054402871,9.54198473,104.8,104.77,0.5]
[1770054403449,3.5010834,104.82,104.79,0.5]
[1770054404857,9.54068339,104.82,104.79,0.5]
[1770054405155,13.04176679,104.82,104.79,0.5]
[1770054405768,9.54068339,104.82,104.79,0.5]
[1770054405973,5.36086188,104.86,104.82,0.5]
[1770054406171,3.5010834,104.85,104.82,0.5]
[1770054406969,13.0392879,104.85,104.81,3.5010834]
[1770054407173,13.0392879,104.85,104.81,4.0010834]
[1770054407369,3.5010834,104.84,104.8,4.0010834]
[1770054407877,36.88287397,104.85,104.81,0.5]
[1770054409471,9.73591058,104.87,104.84,0.5]
[1770054410180,13.23699398,104.87,104.84,0.5]
[1770054410382,9.73591058,104.87,104.84,0.5]
[1770054410563,0.2,104.87,104.84,4.0010834]
[1770054411376,0.2,104.87,104.84,0.5]
[1770054411683,9.73576191,104.87,104.84,0.5]
[1770054414060,9.73576191,104.87,104.83,4.0010834]
[1770054414381,9.73576191,104.87,104.84,0.5]
[1770054414675,13.23684531,104.87,104.84,0.5]
[1770054416484,3.5010834,104.86,104.82,0.5]
[1770054417079,3.5010834,104.85,104.82,0.5]
[1770054417265,13.03816085,104.86,104.82,0.5]
[1770054418182,3.5010834,104.85,104.82,0.5]
[1770054418482,3.5010834,104.85,104.81,0.5]
[1770054418670,3.5010834,104.84,104.81,0.5]
[1770054418876,3.5010834,104.83,104.8,0.5]
[1770054419386,13.04049781,104.83,104.8,0.5]
[1770054420275,3.5010834,104.82,104.79,0.5]
[1770054420481,3.5010834,104.81,104.77,0.5]
[1770054420685,3.5010834,104.8,104.78,0.5]
[1770054420879,3.5010834,104.81,104.78,0.5]
[1770054421388,9.53652489,104.86,104.81,0.5]
[1770054421573,3.98418764,104.85,104.81,3.5010834]
[1770054421893,0.48310424,104.85,104.81,3.5010834]
[1770054422388,10.0206351,104.85,104.81,13.04153504]
[1770054422576,9.53753086,104.85,104.81,13.04153504]
[1770054422779,0.2,104.87,104.84,3.5010834]
[1770054423178,0.2,104.87,104.85,3.5010834]
[1770054423378,0.2,104.87,104.84,3.5010834]
[1770054423584,0.2,104.87,104.84,0.47566771]
[1770054424191,9.73567596,104.87,104.84,0.47566771]
[1770054424397,3.98418764,104.86,104.83,0.47566771]
[1770054424686,0.48310424,104.86,104.83,0.47566771]
[1770054425185,10.01982825,104.86,104.83,0.47566771]
[1770054425388,13.52091165,104.86,104.82,13.5161907]
[1770054425687,13.23715616,104.87,104.84,0.47566771]
[1770054425869,9.73607276,104.87,104.84,0.47566771]
[1770054426489,0.2,104.87,104.85,0.47566771]
[1770054426688,0.2,104.88,104.87,0.47566771]
[1770054426892,0.2,104.91,104.89,0.47566771]
[1770054427080,0.2,104.91,104.89,3.97675111]
[1770054427667,6.8999818,104.93,104.89,3.97675111]
[1770054428396,6.41687756,104.93,104.9,3.97675111]
[1770054428695,6.41687756,104.93,104.91,0.47566771]
[1770054428881,5.91687756,104.93,104.91,3.6010834]
[1770054429188,5.81687756,104.93,104.91,3.6010834]
[1770054429388,3.75153032,104.93,104.91,3.6010834]
[1770054429592,0.2,104.96,104.92,3.5010834]
[1770054429778,0.2,104.96,104.94,3.5010834]
[1770054430284,0.2,104.98,104.95,3.5010834]
[1770054430479,0.2,104.98,104.96,8.72815425]
[1770054430680,0.2,104.98,104.95,8.72815425]
[1770054431296,0.7,104.98,104.95,8.72815425]
[1770054431470,0.2,104.98,104.94,18.25740906]
[1770054431794,0.2,104.98,104.97,8.72815425]
[1770054431990,0.2,104.98,104.96,8.72815425]
[1770054432192,0.7,104.98,104.94,42.08054609]
[1770054432495,0.2,104.98,104.96,8.72815425]
[1770054432676,0.2,104.98,104.96,18.2550844]
[1770054433805,0.2,104.98,104.97,8.72815425]
[1770054433981,0.2,104.98,104.95,9.52805137]
[1770054434298,0.2,104.98,104.96,18.25532203]
[1770054434872,0.2,104.98,104.96,9.5274356]
[1770054435073,0.5,105.0,104.96,18.25558985]
[1770054435897,0.5,105.0,104.96,8.72815425]
[1770054437092,9.52395679,105.0,104.96,8.72815425]
[1770054437278,0.5,105.0,104.96,8.72815425]
[1770054437680,0.5,104.99,104.96,8.72815425]
[1770054437882,8.72815425,104.98,104.94,9.52925481]
[1770054438085,9.22815425,104.97,104.94,9.52925481]
[1770054438287,0.5,104.97,104.94,9.52925481]
[1770054438500,0.5,104.97,104.93,18.25786166]
[1770054438996,0.5,104.96,104.93,9.53014232]
[1770054439186,0.5,104.97,104.93,42.08370398]
[1770054439387,0.5,104.99,104.95,8.72815425]
[1770054439788,0.5,104.99,104.96,8.72815425]
[1770054440475,0.5,104.99,104.96,8.72816645]
[1770054440892,0.5,104.99,104.96,18.25559749]
[1770054441680,0.5,104.99,104.96,9.52743104]
[1770054441899,0.5,104.99,104.96,18.25559749]
[1770054442700,0.5,104.99,104.95,9.527845]
[1770054442880,10.02479031,104.99,104.95,18.25601145]
[1770054443084,0.5,104.98,104.95,9.527845]
[1770054443510,0.5,104.97,104.93,18.25785821]
[1770054443717,0.5,104.97,104.94,9.52911538]
[1770054443885,0.5,104.98,104.95,9.52827653]
[1770054444278,0.5,104.97,104.93,8.72816645]
[1770054444486,0.5,104.98,104.95,18.25633575]
[1770054444884,0.5,104.98,104.94,32.55089604]
[1770054446499,0.5,104.99,104.94,23.82272959]
[1770054446812,0.5,104.98,104.94,32.55089604]
[1770054447187,0.5,104.98,104.94,42.08015085]
[1770054447918,0.5,104.98,104.95,8.72816645]
[1770054448504,0.5,104.98,104.94,32.55089604]
[1770054448897,10.0260848,104.98,104.93,33.35557037]
[1770054449211,18.75425125,104.98,104.93,42.08373682]
[1770054449708,0.5,104.97,104.93,33.35557037]
[1770054449907,0.5,104.97,104.93,42.08373682]
[1770054450911,18.75249694,105.0,104.95,8.72816645]
[1770054451091,10.02433049,105.0,104.96,8.72816645]
[1770054451291,0.5,104.99,104.95,8.72816645]
[1770054451710,16.16700766,105.01,104.97,8.72816645]
[1770054451903,0.5,105.0,104.95,26.48]
[1770054452097,0.5,105.0,104.95,35.20816645]
[1770054452297,0.5,105.0,104.96,8.72816645]
[1770054453015,0.5,105.0,104.97,9.52653138]
[1770054453217,18.75220199,105.0,104.96,9.52704905]
[1770054453400,10.02403554,105.0,104.96,18.2552155]
[1770054453601,18.75220199,105.0,104.96,9.52704905]
[1770054453902,0.5,104.98,104.95,36.0079094]
[1770054454294,0.5,104.96,104.92,8.72816645]
[1770054454515,0.5,104.96,104.92,35.20816645]
[1770054454815,0.5,104.97,104.92,35.20816645]
[1770054455001,0.5,104.96,104.93,9.53016296]
[1770054455399,0.5,104.97,104.93,9.53016296]
[1770054455699,10.02658123,104.97,104.93,9.53016296]
[1770054456321,0.5,104.95,104.92,9.53087881]
[1770054459126,18.25579987,104.96,104.92,33.35855704]
[1770054459127,0.5,104.96,104.92,33.35855704]
[1770054459300,0.5,104.96,104.92,42.08672349]
[1770054459494,0.5,104.96,104.92,33.35855704]
[1770054459701,0.5,104.95,104.92,9.53087881]
[1770054461020,10.02700681,104.97,104.93,8.72816645]
[1770054461205,0.5,104.96,104.93,8.72816645]
[1770054461406,0.5,104.96,104.93,9.52969886]
[1770054462008,0.5,104.97,104.93,42.08327272]
[1770054465133,0.5,104.98,104.95,8.72816645]
[1770054465325,6.64387304,105.01,104.96,8.72816645]
[1770054465499,6.64387304,105.01,104.97,8.72816645]
[1770054465703,6.64387304,105.01,104.98,8.72816645]
[1770054466124,0.5,105.0,104.97,8.72816645]
[1770054467316,0.5,105.0,104.97,9.526212]
[1770054468815,0.5,104.98,104.94,8.72816645]
[1770054469121,9.22816645,104.98,104.94,9.5288045]
[1770054469621,9.22816645,104.98,104.93,9.52986603]
[1770054469622,0.5,104.97,104.93,9.52986603]
[1770054469828,0.5,104.96,104.93,9.52986603]
[1770054472208,0.5,104.96,104.92,36.01070305]
[1770054472408,0.5,104.96,104.92,44.7388695]
[1770054472721,0.5,104.96,104.92,36.01070305]
[1770054473227,0.5,104.96,104.92,68.56654773]
[1770054474532,0.5,104.96,104.92,63.33179734]
[1770054477427,10.02761562,104.96,104.92,63.33179734]
[1770054477631,0.5,104.95,104.92,39.50411911]
[1770054479340,0.5,104.95,104.92,63.33179734]
[1770054479527,0.5,104.97,104.93,3.49341606]
[1770054481237,0.5,104.97,104.94,9.52925481]
[1770054482045,3.49341606,104.98,104.94,9.52925481]
[1770054482218,0.5,104.99,104.96,3.49341606]
[1770054482423,0.5,104.99,104.96,8.72796008]
[1770054483339,0.5,105.0,104.97,18.25449146]
[1770054483724,0.5,105.0,104.97,9.52653138]
[1770054483918,0.5,104.98,104.96,9.52693526]
[1770054484232,0.5,104.98,104.95,36.00767016]
[1770054484544,0.5,104.98,104.93,8.72796008]
[1770054484545,0.5,104.97,104.93,8.72796008]
[1770054484840,0.5,104.97,104.94,26.48]
[1770054485422,0.5,104.97,104.95,9.52833555]
[1770054486440,0.5,104.98,104.95,9.52833555]
[1770054488324,0.5,104.96,104.93,36.00960028]
[1770054488542,0.5,104.96,104.94,9.52920625]
[1770054489539,0.5,104.98,104.94,9.52920625]
[1770054489738,0.5,105.0,104.96,8.72796008]
[1770054490124,9.22796008,105.0,104.95,35.20796008]
[1770054490439,0.5,104.99,104.95,35.20796008]
[1770054490647,0.5,104.99,104.95,26.48]
[1770054491026,0.5,104.99,104.94,68.56030336]
[1770054491550,0.5,104.99,104.95,8.72796008]
[1770054491931,0.5,104.99,104.95,35.20796008]
[1770054492227,0.5,104.99,104.95,26.48]
[1770054492432,0.5,104.99,104.95,35.20796008]
[1770054492637,0.5,105.0,104.97,8.72796008]
[1770054493239,6.14387304,105.01,104.99,8.72796008]
[1770054493445,0.7,105.02,104.99,8.72796008]
[1770054493633,0.7,105.02,104.99,18.25195688]
[1770054495233,10.2221782,105.02,104.98,18.25319953]
[1770054495642,10.2221782,105.02,104.99,9.52470665]
[1770054495958,0.7,105.02,104.99,9.52470665]
[1770054496872,0.5,105.01,104.99,9.52470665]
[1770054497167,0.5,105.01,104.98,9.5250994]
[1770054497754,0.5,105.01,104.98,42.0671193]
[1770054498058,1e-08,105.04,105.0,8.72796008]
[1770054498347,1e-08,105.04,105.03,8.72796008]
[1770054499656,1e-08,105.04,105.03,18.24904929]
[1770054500029,0.5,105.06,105.03,42.05177232]
[1770054500235,0.5,105.06,105.04,8.72796008]
[1770054500431,0.5,105.06,105.04,8.71472088]
[1770054500659,0.2,105.07,105.04,8.71472088]
[1770054500660,0.7,105.07,105.04,8.71472088]
[1770054500830,0.2,105.07,105.05,8.71472088]
[1770054501652,1e-08,105.07,105.05,8.71472088]
[1770054501847,1e-08,105.07,105.06,9.51837045]
[1770054502454,0.2,105.1,105.06,42.02901746]
[1770054502635,0.2,105.1,105.08,8.71472088]
[1770054502845,0.7,105.1,105.08,8.71472088]
[1770054503058,0.5,105.09,105.06,68.48901746]
[1770054503245,0.5,105.09,105.07,8.71472088]
[1770054503436,0.7,105.1,105.07,8.71472088]
[1770054504754,0.7,105.1,105.07,9.51687916]
[1770054504957,0.5,105.09,105.07,9.51687916]
[1770054506454,0.7,105.1,105.07,18.23160004]
[1770054506656,0.2,105.1,105.08,8.71472088]
[1770054507045,0.2,105.1,105.07,42.0252614]
[1770054508537,0.2,105.1,105.08,8.71472088]
[1770054508751,0.7,105.1,105.07,42.0252614]
[1770054509154,0.7,105.1,105.08,8.71472088]
[1770054511957,0.2,105.1,105.08,42.02199307]
[1770054512166,1e-08,105.1,105.08,42.02199307]
[1770054512960,0.50000001,105.1,105.08,9.51587516]
[1770054513253,1e-08,105.1,105.08,9.51587516]
[1770054513458,1e-08,105.1,105.08,18.23059604]
[1770054513965,1e-08,105.1,105.08,42.02199307]
[1770054514365,1e-08,105.1,105.09,8.71472088]
[1770054515445,1e-08,105.1,105.08,42.02199307]
[1770054516368,1e-08,105.1,105.09,8.71472088]
[1770054516967,1e-08,105.1,105.08,32.50611791]
[1770054519567,1e-08,105.1,105.09,26.44]
[1770054520568,1e-08,105.1,105.09,35.15472088]
[1770054521470,0.7,105.13,105.09,35.15472088]
[1770054521668,0.2,105.13,105.11,9.51384264]
[1770054522674,0.7,105.13,105.11,9.51384264]
[1770054525861,0.7,105.13,105.11,39.43547331]
[1770054526566,0.7,105.13,105.11,35.95384264]
[1770054528865,0.5,105.11,105.07,29.92163067]
[1770054529667,0.5,105.12,105.1,9.51436154]
[1770054529972,0.5,105.12,105.1,12.99599221]
[1770054530274,0.5,105.12,105.1,35.95436154]
[1770054530675,0.5,105.12,105.1,39.43599221]
[1770054530879,0.7,105.13,105.11,9.51382096]
[1770054534477,0.2,105.13,105.11,9.51382096]
[1770054538880,0.7,105.13,105.11,9.51382096]
[1770054540591,0.5,105.12,105.1,35.95445179]
[1770054541862,0.5,105.12,105.08,27.2712045]
[1770054542086,0.5,105.12,105.09,35.95537083]
[1770054542486,0.5,105.09,105.01,47.61091637]
[1770054542805,0.5,105.07,105.04,9.52018278]
[1770054543166,13.49917159,105.07,105.04,9.52018278]
[1770054543590,0.5,105.06,105.03,33.3226659]
[1770054544094,3.98163067,105.06,105.03,9.52055993]
[1770054544398,0.5,105.06,105.03,9.52100174]
[1770054545664,0.5,105.08,105.03,13.00263241]
[1770054545865,0.5,105.08,105.04,3.48163067]
[1770054546086,0.5,105.08,105.04,29.92163067]
[1770054546290,0.5,105.08,105.04,26.44]
[1770054546592,0.5,105.07,105.04,26.44]
[1770054546970,10.01749639,105.07,105.04,26.44]
[1770054547188,0.5,105.07,105.04,35.96013692]
[1770054548194,3.94833829,105.05,105.01,0.48583707]
[1770054548371,33.31117096,105.07,105.01,10.0082483]
[1770054548372,3.94833829,105.04,105.01,10.0082483]
[1770054548883,0.46670762,105.05,105.02,10.00778754]
[1770054550087,0.46670762,105.06,105.03,0.48583707]
[1770054550595,0.46670762,105.07,105.04,0.48583707]
[1770054551076,0.46670762,105.07,105.03,26.92583707]
[1770054551471,0.46670762,105.07,105.04,9.52018278]
[1770054551866,0.46670762,105.09,105.05,3.96746774]
[1770054552071,0.46670762,105.1,105.06,3.96746774]
[1770054552594,0.46670762,105.09,105.05,26.92583707]
[1770054552895,0.46670762,105.08,105.05,26.92583707]
[1770054553482,0.46670762,105.08,105.06,9.51837045]
[1770054553883,0.46670762,105.08,105.05,36.44469287]
[1770054554801,0.46670762,105.08,105.05,39.92632354]
[1770054555401,0.46670762,105.07,105.04,9.51987067]
[1770054555599,0.46670762,105.05,105.03,9.52076329]
[1770054557002,0.46670762,105.04,105.02,35.96157097]
[1770054558300,0.46670762,105.04,105.01,9.52264804]
[1770054560177,0.49881729,105.04,105.01,10.0176774]
[1770054560400,0.49881729,105.02,104.99,26.64]
[1770054560592,3.98044796,105.03,105.0,0.49502936]
[1770054560906,0.49881729,105.03,105.0,0.49502936]
[1770054561078,0.49881729,105.03,104.99,30.12163067]
[1770054561401,0.49881729,105.0,104.99,0.2]
[1770054561607,0.49881729,105.0,104.97,10.02143347]
[1770054561987,3.98044796,105.0,104.96,10.02202238]
[1770054562188,0.49881729,105.0,104.97,9.52635142]
[1770054562900,0.49881729,104.99,104.96,9.5269618]
[1770054563593,0.49881729,104.98,104.95,36.46299692]
[1770054564303,0.49881729,104.98,104.95,10.02299692]
[1770054564506,0.49881729,104.98,104.95,18.75015366]
[1770054566009,0.49881729,104.98,104.95,10.02299692]
[1770054567011,0.49881729,104.98,104.95,18.75015366]
[1770054567707,0.49881729,104.98,104.95,10.02299692]
[1770054571096,0.49881729,104.98,104.96,8.72715674]
[1770054572795,0.49881729,104.99,104.96,18.25427102]
[1770054574515,0.49881729,105.01,104.98,0.49502936]
[1770054574724,9.22597403,105.01,104.98,0.49502936]
[1770054575515,9.22597403,105.01,104.98,10.02037625]
[1770054575812,0.49881729,105.0,104.98,9.52534689]
[1770054576021,0.49881729,104.99,104.96,18.74915972]
[1770054576410,0.49881729,104.97,104.94,10.22395787]
[1770054576812,0.49881729,104.96,104.94,0.2]
[1770054577008,8.72715674,104.98,104.94,0.69502936]
[1770054577210,9.22597403,104.99,104.95,0.49502936]
[1770054577411,0.49881729,104.97,104.94,10.22417139]
[1770054577806,0.49881729,104.96,104.94,0.2]
[1770054578831,0.49881729,104.95,104.94,0.2]
[1770054579009,0.49881729,104.96,104.94,9.72919569]
[1770054579212,0.49881729,104.96,104.94,0.2]
[1770054579607,9.22597403,104.97,104.94,10.22426669]
[1770054579807,0.49881729,104.97,104.94,10.22426669]
[1770054580030,10.02541531,104.97,104.94,9.72923733]
[1770054580329,0.49881729,104.96,104.94,0.2]
[1770054581902,9.22597403,104.99,104.95,0.49502936]
[1770054582105,9.22597403,104.99,104.96,0.49502936]
[1770054582305,9.22597403,104.99,104.95,9.2221861]
[1770054582725,0.49881729,104.98,104.95,9.2221861]
[1770054583828,0.49881729,104.99,104.96,18.74962512]
[1770054584428,0.49881729,104.99,104.96,10.02246838]
[1770054586636,10.02355583,104.99,104.95,13.51453943]
[1770054586932,0.49881729,104.98,104.95,10.02335114]
[1770054587638,13.51507994,104.99,104.95,10.02335114]
[1770054588437,0.49927095,104.98,104.95,10.02335114]
[1770054589035,0.49927095,104.98,104.95,37.33574232]
[1770054589334,0.49927095,104.99,104.96,0.45775449]
[1770054589918,0.49927095,104.99,104.96,3.9492786]
[1770054590113,3.98786093,105.03,104.98,3.49152411]
[1770054590333,13.50938382,105.03,104.99,0.48482538]
[1770054590635,0.49633682,105.03,105.0,13.50015901]